[Event "Singapore Open-A 2024"]
[Site "Singapore"]
[Date "2024.11.29"]
[Round "1.6"]
[White "Nesterov, Arseniy"]
[Black "John Veny Akkarakaran"]
[Result "1-0"]
[ECO "D37"]
[WhiteElo "2599"]
[BlackElo "2310"]
[Annotator "TA"]
[PlyCount "205"]
[EventDate "2024.11.29"]
[EventType "swiss"]
[EventCountry "SIN"]
[SourceTitle "playchess.com"]
[Source "ChessBase"]
[SourceQuality "1"]
[TimeControl "5400+30"]

{[%evp 113,205,7,7,7,7,7,8,8,8,8,11,0,14,0,0,0,22,22,22,8,8,8,85,58,58,8,10,9,69,69,113,121,119,123,124,126,125,128,125,120,375,372,308,378,367,361,371,371,1743,300,218,295,280,241,403,395,581,317,943,919,871,818,29953,29953,5923,11973,8378,5097,11114,8452,5417,4627,29965,29969,29979,29980,29978,29979,29979,29979,29983,29984,29985,29986,29986,29987,29990,29988,29988,29989,29989,29989,29992,29993]} 1. d4 {[%emt 0:00:10]} e6 {[%emt 0:00:14]} 2. c4 {[%emt 0:00:19]} Nf6 {[%emt 0:00:09]} 3. Nf3 {[%emt 0:00:08]} d5 {[%emt 0:05:46]} 4. Nc3 {[%emt 0:00:12]} a6 {[%emt 0:00:14]} 5. cxd5 {[%emt 0:00:55]} exd5 {[%emt 0:00:07]} 6. Bg5 {[%emt 0:00:06] D37: Queen's Gambit Declined: 5 Bf4.} Be6 {[%emt 0:00:10]} 7. e3 {[%emt 0:00:14]} Nbd7 {[%emt 0:00:14]} 8. Bd3 {[%emt 0:00:10]} Bd6 {[%emt 0:00:37]} 9. O-O {[%emt 0:00:41]} c6 {[%emt 0:01:11]} 10. h3 {[%emt 0:01:45]} Qc7 {[%emt 0:04:49]} 11. Qd2 {[%emt 0:00:15]} h6 {[%emt 0:02:42]} 12. Bf4 {[%emt 0:00:07]} O-O {[%emt 0:00:53]} 13. Rfe1 {[%emt 0:03:25]} Nb6 {[%emt 0:06:52]} 14. b3 {[%emt 0:10:30]} Rfe8 {[%emt 0:04:05]} 15. Rac1 {[%emt 0:11:35]} Re7 $146 {[%emt 0:22:19]} ({Predecessor:} 15... Qe7 16. Bxd6 Qxd6 17. Ne5 Rac8 18. Bb1 Rc7 19. Ne2 Ne4 20. Qa5 Nc8 21. Nf4 Rce7 22. Bxe4 dxe4 {0-1 Le,Q (2731)-Caruana,F (2795) Saint Louis Rapid 2023 (6)}) 16. Bxd6 {[%emt 0:03:09]} Qxd6 {[%emt 0:00:09]} 17. Ne5 {[%emt 0:00:07]} Rc7 {[%emt 0:16:43]} 18. Ne2 {[%emt 0:13:03]} Rac8 {[%emt 0:08:41]} 19. Nf4 {[%emt 0:10:36]} Nbd7 {[%emt 0:07:29]} 20. Qb2 {[%emt 0:02:27]} c5 {[%emt 0:02:12]} 21. Nxd7 {[%emt 0:00:06]} Nxd7 {[%emt 0:00:37]} 22. dxc5 {[%emt 0:00:06]} Rxc5 {[%emt 0:01:11]} 23. Rcd1 {[%emt 0:05:39]} Qe7 {[%emt 0:02:14]} 24. Bb1 {[%emt 0:01:45]} Nf6 {[%emt 0:02:19]} 25. Qd4 {[%emt 0:02:54]} Rc3 {[%emt 0:00:54]} 26. Qe5 {[%emt 0:05:04]} Qc7 {[%emt 0:01:35]} 27. Qxc7 {[%emt 0:00:05]} R8xc7 {[%emt 0:01:57]} 28. Ne2 {[%emt 0:02:16]} R3c5 {[%emt 0:00:55]} 29. f3 {[%emt 0:00:45]} Kf8 {[%emt 0:00:27]} 30. Kf2 {[%emt 0:00:16]} a5 {[%emt 0:01:23]} 31. Nd4 {[%emt 0:00:56]} Bd7 {[%emt 0:00:49]} 32. g4 {[%emt 0:00:59]} b5 {[%emt 0:02:12]} 33. h4 {[%emt 0:01:09]} Ne8 {[%emt 0:01:34]} 34. Rd2 {[%emt 0:00:23]} b4 {[%emt 0:00:25]} 35. Red1 {[%emt 0:02:01]} Rc1 {[%emt 0:00:55]} 36. Ne2 {[%emt 0:00:31]} Rxd1 {[%emt 0:00:10]} 37. Rxd1 {[%emt 0:00:01]} Be6 {[%emt 0:00:59]} 38. Nf4 {[%emt 0:00:37]} Rc5 {[%emt 0:00:27]} 39. Bd3 {[%emt 0:02:31]} Ke7 {[%emt 0:00:51]} 40. Ke1 {[%emt 0:03:21]} Nc7 {[%emt 0:00:39]} 41. Kd2 {[%emt 0:01:15]} Bc8 {[%emt 0:00:50]} 42. Ra1 {[%emt 0:02:59]} Ba6 {[%emt 0:00:38]} 43. Bxa6 {[%emt 0:00:14]} Nxa6 {[%emt 0:00:01]} 44. Ne2 {[%emt 0:00:17]} Nc7 {[%emt 0:01:23]} 45. a3 {[%emt 0:00:28]} Na6 {[%emt 0:00:36]} 46. Nd4 {[%emt 0:00:21]} bxa3 {[%emt 0:00:30]} 47. Rxa3 {[%emt 0:00:02]} Nb4 {[%emt 0:00:07]} 48. Ra1 {[%emt 0:00:04]} g6 {[%emt 0:01:11]} 49. f4 {[%emt 0:04:57]} Kf6 {[%emt 0:00:14]} 50. h5 {[%emt 0:05:03]} gxh5 {[%emt 0:00:55]} 51. gxh5 {[%emt 0:00:02]} Na6 {[%emt 0:00:37]} 52. Rg1 {[%emt 0:00:48]} Rc8 {[%emt 0:00:15]} 53. Ra1 {[%emt 0:01:30]} Rc5 {[%emt 0:00:05]} 54. Rg1 {[%emt 0:07:09]} Rc8 {[%emt 0:00:04]} 55. Ke2 {[%emt 0:00:04]} Nb4 {[%emt 0:00:32]} 56. Rd1 {[%emt 0:01:14]} Rc3 {[%emt 0:00:49]} 57. Kf3 {[%emt 0:00:33]} Rc8 {[%emt 0:01:17]} 58. Ra1 {[%emt 0:00:25]} Rc5 {[%emt 0:00:09]} 59. Kg4 {[%emt 0:00:07]} Nd3 $1 {[%emt 0:00:54]} 60. Kg3 {[%emt 0:00:54]} Nb4 {[%emt 0:00:25]} 61. Kf3 {[%emt 0:00:01]} Nd3 {[%emt 0:00:29]} 62. Rd1 {[%emt 0:00:43]} (62. Ke2 $5 Nb4 $8 63. Kf3 $11) 62... Nb4 {[%emt 0:00:14]} 63. Rd2 {[%emt 0:00:45]} Rc3 {[%emt 0:00:45]} 64. Rd1 {[%emt 0:00:36]} Rc5 {[%emt 0:00:10]} 65. Kg4 {[%emt 0:00:29]} Rc3 {[%emt 0:00:16]} 66. Nf5 {[%emt 0:00:37]} Rxb3 {[%emt 0:01:03]} 67. e4 {[%emt 0:00:26]} Rb2 {[%emt 0:00:49]} (67... Nd3 $1 $11 {remains equal.} 68. e5+ (68. Nxh6 $2 Nf2+ 69. Kh4 Rh3#) 68... Ke6 69. Nd4+ (69. Nxh6 $2 Nf2+ 70. Kg5 Rg3+ 71. Kh4 Rh3+ 72. Kg5 Nxd1 $19) 69... Ke7 70. Nxb3 Nf2+ 71. Kf3 Nxd1 72. Nxa5 Nc3) 68. e5+ $16 {[%emt 0:00:13]} (68. Nxh6 dxe4 69. Rd6+ Kg7 $11) 68... Ke6 {[%emt 0:00:00]} 69. Ra1 {[%emt 0:00:44]} (69. Nxh6 $14 a4 70. Kg5) 69... Rg2+ {[%emt 0:00:55]} 70. Kf3 {[%emt 0:00:03]} Rh2 {[%emt 0:00:34]} (70... Kxf5 $11 71. Kxg2 Kxf4) 71. Ng7+ {[%emt 0:00:49]} (71. Nxh6 Rxh5 72. Ng4 Nc6 $15) 71... Kd7 {[%emt 0:00:22]} 72. Rxa5 {[%emt 0:00:01]} d4 {[%emt 0:00:22]} 73. Rb5 $1 {[%emt 0:00:38]} (73. Ra7+ $6 Kc6 $11) 73... Nc2 {[%emt 0:00:34]} 74. Rb6 $1 {[%emt 0:01:03]} (74. Rb7+ $6 Kc6 75. Rxf7 d3 76. Rf6+ Kc5 $11) 74... Ne1+ {[%emt 0:00:41]} 75. Ke4 {[%emt 0:00:05]} d3 {[%emt 0:00:08]} 76. Rxh6 {[%emt 0:00:47]} Re2+ $2 {[%emt 0:00:39][%mdl 8192]} (76... d2 $16 {keeps fighting.} 77. Rd6+ Kc8) 77. Kf5 $18 {[%emt 0:00:01]} d2 {[%emt 0:00:27]} 78. Rd6+ {[%emt 0:00:05]} Ke7 {[%emt 0:00:13]} 79. h6 $1 {[%emt 0:00:15]} Rh2 {[%emt 0:00:27]} 80. Kg4 {[%emt 0:00:38]} Nc2 $2 {[%emt 0:00:53]} (80... Kf8 81. Rd8+ Ke7) 81. Kg3 $2 {[%emt 0:00:44]} (81. Nf5+ Ke8 82. Kg5 (82. Kg3 Rxh6 83. Rxd2 Rc6 $16) 82... Rg2+ 83. Kh5 Rh2+ 84. Nh4) 81... Rxh6 $18 {[%emt 0:00:42]} 82. Nf5+ {[%emt 0:00:06]} ({And not} 82. Rxd2 Rg6+ 83. Kf2 Rxg7 $11) 82... Ke8 {[%emt 0:00:01] [#]} 83. Rxd2 $1 {[%emt 0:01:44]} ({Not} 83. Nxh6 Ne3 $16) 83... Rg6+ $2 {[%emt 0:00:04] [#]} (83... Rc6 84. Kg4 Nb4) 84. Kf3 $1 $18 {[%emt 0:00:10]} Nb4 {[%emt 0:00:31]} (84... Rc6 {was necessary.} 85. Rh2 Ne1+ 86. Kg3 Nd3) 85. Rb2 {[%emt 0:00:07]} Nc6 $2 {[%emt 0:01:24]} (85... Rb6 86. Nd6+ Kf8) 86. Rb7 $18 {[%emt 0:00:05]} Nd8 {[%emt 0:00:29]} 87. Ra7 {[%emt 0:00:33]} Rb6 {[%emt 0:00:35]} 88. Nd6+ {[%emt 0:00:27]} Kf8 {[%emt 0:00:01]} 89. Ra8 {[%emt 0:01:30]} Rb3+ {[%emt 0:00:07]} 90. Ke4 {[%emt 0:00:07]} Ke7 {[%emt 0:00:27]} 91. Ra7+ {[%emt 0:00:42]} Kf8 {[%emt 0:00:06]} 92. Rd7 {[%emt 0:00:12]} Rb8 {[%emt 0:01:32]} 93. f5 {[%emt 0:00:26]} Ra8 {[%emt 0:00:20]} 94. f6 {[%emt 0:00:50]} Kg8 {[%emt 0:00:45]} 95. Kf5 {[%emt 0:00:04]} Rb8 {[%emt 0:00:37]} 96. Re7 {[%emt 0:00:35]} Nc6 {[%emt 0:00:26]} 97. Rxf7 {[%emt 0:00:33]} Rb1 {[%emt 0:00:04]} 98. Rg7+ {[%emt 0:00:06]} Kf8 {[%emt 0:00:01]} 99. Rc7 {[%emt 0:00:25]} Nd8 {[%emt 0:00:44]} 100. Rc8 {[%emt 0:00:11]} Rf1+ {[%emt 0:00:07]} 101. Kg4 {[%emt 0:00:06]} Rg1+ {[%emt 0:01:17]} 102. Kf3 {[%emt 0:00:10]} Rf1+ {[%emt 0:00:05]} 103. Kg2 {[%emt 0:00:05]} 1-0

[Event "Singapore Open-A 2024"]
[Site "Singapore"]
[Date "2024.11.29"]
[Round "1.7"]
[White "Tin, Jingyao"]
[Black "Novita, Anjas"]
[Result "1-0"]
[ECO "E47"]
[WhiteElo "2588"]
[BlackElo "2350"]
[Annotator "TA"]
[PlyCount "101"]
[EventDate "2024.11.29"]
[EventType "swiss"]
[EventCountry "SIN"]
[SourceTitle "playchess.com"]
[Source "ChessBase"]
[SourceQuality "1"]
[TimeControl "5400+30"]

{[%evp 12,101,25,0,40,37,39,42,35,28,52,59,75,73,86,18,0,-5,-17,-19,-13,-13,0,0,0,0,0,-15,-18,-20,-20,-29,0,-21,62,49,61,54,64,64,61,60,89,42,65,69,72,33,47,45,48,42,49,39,33,43,121,114,114,113,122,116,179,164,280,287,297,261,276,270,423,385,560,508,530,535,1783,1690,2925,4270,2200,5631,5622,5471,5050,2513,5631,5543,6756,6047,6540,6278]} 1. d4 {[%emt 0:00:26]} Nf6 {[%emt 0:00:20]} 2. c4 {[%emt 0:00:19]} e6 {[%emt 0:00:13]} 3. Nc3 {[%emt 0:00:17]} Bb4 {[%emt 0:00:16]} 4. e3 {[%emt 0:00:10]} O-O {[%emt 0:01:20]} 5. Bd3 {[%emt 0:00:38]} Bxc3+ {[%emt 0:00:37]} 6. bxc3 {[%emt 0:00:09] E47: Nimzo-Indian: Rubinstein: 5 Bd3 without ...d5.} c5 {[%emt 0:00:39]} 7. e4 {[%emt 0:01:22]} d6 {[%emt 0:00:55]} 8. e5 {[%emt 0:09:51]} dxe5 {[%emt 0:00:20]} 9. dxe5 {[%emt 0:00:09]} Nfd7 {[%emt 0:00:23]} 10. Nf3 {[%emt 0:01:07]} h6 {[%emt 0:05:21]} 11. O-O {[%emt 0:04:51]} Nc6 {[%emt 0:00:25]} 12. Bf4 $146 {[%emt 0:07:03]} ({Predecessor:} 12. Re1 Qc7 13. Qe2 Rd8 14. Bc2 Ne7 15. Bf4 Nf8 16. h4 b6 17. h5 Bb7 18. Nh2 {1-0 Fernandez,M (2138)-Brito,L (2282) Joao Pessoa op 08 2013 (3)}) 12... Qc7 {[%emt 0:03:50]} 13. Qe2 {[%emt 0:03:01]} (13. Qc1 $16) 13... f5 $1 $11 {[%emt 0:01:32]} 14. Qe3 {[%emt 0:06:56]} Rf7 {[%emt 0:00:53]} 15. h4 {[%emt 0:06:36]} b6 {[%emt 0:00:31]} 16. h5 {[%emt 0:01:33]} Qd8 {[%emt 0:04:43]} 17. Rfd1 {[%emt 0:06:20]} Ba6 {[%emt 0:04:24]} 18. Bg3 {[%emt 0:08:41]} Na5 {[%emt 0:00:34]} 19. Qf4 {[%emt 0:00:41]} Qe8 {[%emt 0:00:37]} 20. Nd2 {[%emt 0:07:06]} Nf8 {[%emt 0:02:31]} 21. Nb3 {[%emt 0:00:42]} Qa4 {[%emt 0:01:46]} 22. Be2 {[%emt 0:03:37]} Rd7 {[%emt 0:11:34]} ({Black should play} 22... Nc6 $11) 23. Rxd7 $14 {[%emt 0:04:25]} Nxd7 {[%emt 0:02:06]} 24. Nxa5 {[%emt 0:00:17]} Qxa5 {[%emt 0:00:16]} 25. Qd2 {[%emt 0:00:56]} Nf8 {[%emt 0:00:13]} 26. a4 {[%emt 0:00:25]} Bb7 {[%emt 0:00:46] [#]} 27. Bh4 {[%emt 0:04:26]} (27. Ra3 $1 $16) 27... Re8 {[%emt 0:00:58]} 28. Ra3 {[%emt 0:01:49]} Qa6 $1 {[%emt 0:02:26]} 29. Bf1 {[%emt 0:06:31]} Bc6 {[%emt 0:01:23]} 30. Qd6 {[%emt 0:01:21]} Qb7 {[%emt 0:01:08]} 31. a5 {[%emt 0:00:35]} Rc8 {[%emt 0:09:57]} 32. axb6 {[%emt 0:02:07]} axb6 {[%emt 0:00:06]} 33. Bd8 {[%emt 0:03:19]} Qb8 {[%emt 0:05:02]} (33... Kf7 $14) 34. Qxb8 $16 {[%emt 0:02:32]} Rxb8 {[%emt 0:00:13]} 35. Bc7 {[%emt 0:00:16]} Rc8 {[%emt 0:00:19]} 36. Ra7 {[%emt 0:00:50]} ({But not} 36. Bxb6 $6 Nd7 37. Ra6 Nxe5 $11) 36... Nd7 {[%emt 0:09:26] [#]} (36... g5 $16) 37. Bd6 $1 $18 {[%emt 0:00:06]} Kf7 {[%emt 0:00:43]} (37... Nf8 {might work better.} 38. Be2 g6 39. Bxf8 Rxf8 40. hxg6 Ra8) 38. g4 $18 {[%emt 0:03:26]} f4 {[%emt 0:02:17]} 39. Bg2 {[%emt 0:02:49]} f3 {[%emt 0:00:07]} 40. Bf1 {[%emt 0:00:27]} Ke8 {[%emt 0:00:26]} (40... g6 {keeps fighting.} 41. hxg6+ Kxg6) 41. Bd3 $18 {[%emt 0:00:34]} Kd8 {[%emt 0:00:10]} (41... Kf7 {is a better defense.} 42. Bg6+ Kg8) 42. Bg6 $18 {[%emt 0:00:42]} b5 {[%emt 0:15:00]} 43. Bf7 {[%emt 0:00:08]} bxc4 {[%emt 0:00:19]} 44. Bxe6 {[%emt 0:00:20]} Ra8 {[%emt 0:00:08]} 45. Bxd7 {[%emt 0:01:12]} Rxa7 {[%emt 0:02:49]} 46. Bxc6 {[%emt 0:00:05]} Ra6 {[%emt 0:00:13]} 47. Bb5 {[%emt 0:00:08]} Ra5 {[%emt 0:00:15]} 48. Bxc4 {[%emt 0:00:08]} Kd7 {[%emt 0:00:08]} 49. Bf7 {[%emt 0:00:17]} Kc6 {[%emt 0:00:15]} 50. c4 {[%emt 0:00:15]} Ra2 {[%emt 0:05:38]} 51. Bd5+ {[%emt 0:00:16]} 1-0

[Event "Singapore Open-A 2024"]
[Site "Singapore"]
[Date "2024.11.29"]
[Round "1.8"]
[White "Sethuraman, S.P."]
[Black "Bacojo, Mark Jay"]
[Result "1-0"]
[ECO "B90"]
[WhiteElo "2586"]
[BlackElo "2308"]
[Annotator "TA"]
[PlyCount "79"]
[EventDate "2024.11.29"]
[EventType "swiss"]
[EventCountry "SIN"]
[SourceTitle "playchess.com"]
[Source "ChessBase"]
[SourceQuality "1"]
[TimeControl "5400+30"]

{[%evp 13,79,16,22,14,50,45,42,47,33,32,30,24,39,25,62,62,87,79,75,82,235,99,134,119,100,91,189,185,189,174,173,169,187,186,194,203,187,184,325,332,384,434,422,421,401,388,465,475,494,494,606,602,606,589,613,585,710,711,1019,992,1435,1175,5273,1887,2001,1763,1733,717]} 1. e4 {[%emt 0:00:52]} c5 {[%emt 0:01:58]} 2. Nf3 {[%emt 0:00:22]} d6 {[%emt 0:00:40]} 3. d4 {[%emt 0:00:44]} cxd4 {[%emt 0:00:03]} 4. Nxd4 {[%emt 0:00:08]} Nf6 {[%emt 0:00:05]} 5. Nc3 {[%emt 0:00:09]} a6 {[%emt 0:00:21]} 6. Be3 {[%emt 0:04:34]} e5 {[%emt 0:00:31]} 7. Nb3 {[%emt 0:00:08]} Be6 {[%emt 0:00:27]} 8. h3 {[%emt 0:01:41]} d5 {[%emt 0:18:03]} 9. exd5 {[%emt 0:01:46]} Nxd5 {[%emt 0:00:02]} 10. Nxd5 {[%emt 0:01:00] White is slightly better.} Bxd5 {[%emt 0:01:49]} 11. Qh5 {[%emt 0:09:57] aiming for 0-0-0.} Qc7 {[%emt 0:11:07]} 12. O-O-O {[%emt 0:02:58]} Be6 {[%emt 0:01:05]} 13. Bd3 {[%emt 0:03:41][%cal Bf1d3,Bd3e4,Be4d5][%mdl 32]} Nc6 {[%emt 0:09:22]} 14. Be4 {[%emt 0:02:46] White has more active pieces.} (14. Bxh7 $2 Nb4 15. Rd2 g6 $19 (15... Nxa2+ $2 16. Kb1 $19)) 14... Nb4 {[%emt 0:09:09]} 15. Kb1 {[%emt 0:05:39]} (15. Bxh7 $2 g6 (15... Nxa2+ $2 16. Kb1 $19) 16. Qe2 Rc8 $19 (16... Rxh7 $2 17. Kb1 $19)) 15... g6 {[%emt 0:15:12] [#]} 16. Qf3 $36 {[%emt 0:30:12][%mdl 2048] White has strong initiative.} a5 $2 {[%emt 0:13:00] [#]} (16... Be7 $16) 17. a3 {[%emt 0:07:05]} (17. Bxb7 Rb8 (17... Qxc2+ 18. Ka1 $16) 18. c3 (18. Be4 f5 $15) 18... Qxb7 $17 (18... Rxb7 19. cxb4 Rxb4 20. Rc1 $16)) (17. c3 $1 $18 {[%cal Rc3b4] and the rest is easy.} a4 18. cxb4 (18. Bxb7 axb3 19. a3 Bf5+ 20. Be4 Bxe4+ 21. Qxe4 Nc6 $19) 18... axb3 19. Rc1 (19. Bxb7 $2 Qc2+ 20. Ka1 Rxa2#)) 17... a4 $16 {[%emt 0:02:09]} 18. Nc1 {[%emt 0:07:59]} (18. Bxb7 $2 {too greedy.} Qxc2+ (18... Nxc2 $2 19. Bc6+ $18) (18... axb3 $2 19. c3 $17) 19. Ka1 Qxb3 $19 (19... Rb8 $2 20. axb4 f5 21. Nc5 $18)) 18... Nc6 {[%emt 0:11:57]} 19. Bd5 {[%emt 0:08:53]} Bf5 {[%emt 0:00:06]} (19... Bxd5 $16 20. Rxd5 (20. Qxd5 Bg7 $16) 20... Bg7) 20. Nd3 $18 {[%emt 0:02:10]} Bg7 {[%emt 0:00:54]} 21. g4 {[%emt 0:02:59]} Bxd3 {[%emt 0:00:25]} 22. Rxd3 {[%emt 0:00:07][%cal Oe3b6] Bb6! would now be deadly.} ({Don't take} 22. cxd3 $6 Qd7 $16) 22... O-O {[%emt 0:00:09]} 23. c3 {[%emt 0:00:49] Prevents Nd4} Rfe8 {[%emt 0:01:27]} 24. Qe4 {[%emt 0:00:33]} Ne7 {[%emt 0:00:49]} 25. Ba2 {[%emt 0:04:11] A strong pair of Bishops.} b5 {[%emt 0:00:05]} (25... Qc6 {was called for.} 26. f3 Rad8) 26. Rhd1 {[%emt 0:00:24][%cal Bh1d1,Bd1d3,Bd3d7][%mdl 32]} Rad8 {[%emt 0:01:48] Wards off Rd7} 27. Qf3 {[%emt 0:00:49]} Nc6 {[%emt 0:00:06] [#] Threatens to win with ...Rxd3.} 28. Bxf7+ $1 {[%emt 0:00:58][%mdl 512]} Qxf7 {[%emt 0:00:06]} 29. Qxc6 {[%emt 0:00:03]} Rxd3 {[%emt 0:01:29]} 30. Rxd3 {[%emt 0:00:06] White is clearly winning.} Rb8 {[%emt 0:00:32]} 31. Rd7 {[%emt 0:00:18]} Qf8 {[%emt 0:00:31]} 32. Ba7 {[%emt 0:01:26]} Rc8 {[%emt 0:00:24]} 33. Qxb5 {[%emt 0:00:07]} Kh8 {[%emt 0:00:08]} 34. Qxa4 {[%emt 0:00:46]} h5 {[%emt 0:00:54]} 35. Qe4 {[%emt 0:00:46]} hxg4 {[%emt 0:00:16]} 36. hxg4 {[%emt 0:00:05]} Kh7 {[%emt 0:00:09]} 37. Be3 {[%emt 0:00:26][%cal Oe4b7] And now Qb7! would win.} Qf6 {[%emt 0:00:11]} 38. Qh1+ {[%emt 0:00:40]} Kg8 {[%emt 0:00:01]} 39. Qd5+ {[%emt 0:00:09]} Kh7 {[%emt 0:00:13]} 40. Qf7 {[%emt 0:01:13] Weighted Error Value: White=0.11 (very precise) /Black=0.36.  Mistake:       	White=1     	Black=3      Inaccurate:     	---       	Black=3      OK:         	White=14    	Black=6      Best:        	White=2     	Black=3} 1-0

[Event "Singapore Open-A 2024"]
[Site "Singapore"]
[Date "2024.11.29"]
[Round "1.9"]
[White "Nolte, Rolando"]
[Black "Vaibhav, Suri"]
[Result "1-0"]
[ECO "B90"]
[WhiteElo "2307"]
[BlackElo "2586"]
[Annotator "TA"]
[PlyCount "83"]
[EventDate "2024.11.29"]
[EventType "swiss"]
[EventCountry "SIN"]
[SourceTitle "playchess.com"]
[Source "ChessBase"]
[SourceQuality "1"]
[TimeControl "5400+30"]

{[%evp 12,83,40,34,43,49,49,42,44,49,60,58,81,78,116,59,75,46,106,98,87,71,141,154,139,139,144,162,168,160,187,141,162,160,194,192,168,171,168,166,170,155,189,196,199,165,322,208,220,127,137,133,163,83,72,75,122,132,238,242,225,236,596,583,580,570,773,771,828,739,1737,1718,1273,661]} 1. e4 {[%emt 0:00:05]} c5 {[%emt 0:00:16]} 2. Nf3 {[%emt 0:00:10]} d6 {[%emt 0:00:05]} 3. d4 {[%emt 0:00:11]} cxd4 {[%emt 0:00:04]} 4. Nxd4 {[%emt 0:00:08]} Nf6 {[%emt 0:00:02]} 5. Nc3 {[%emt 0:00:11]} a6 {[%emt 0:00:05]} 6. Be3 {[%emt 0:01:42]} Nbd7 {[%emt 0:00:56]} 7. f3 {[%emt 0:05:46]} b5 {[%emt 0:01:46]} 8. a4 {[%emt 0:07:11]} b4 {[%emt 0:00:19]} 9. Nc6 {[%emt 0:25:46][%csl LRb4,LRd8]} Qc7 {[%emt 0:00:07] White is slightly better.} 10. Nxb4 {[%emt 0:00:04]} e6 {[%emt 0:00:07][%cal Od6d5] Dodges Ncd5} 11. Nd3 {[%emt 0:08:16]} Rb8 {[%emt 0:01:57]} 12. Be2 $36 {[%emt 0:08:06][%mdl 2048] White has strong initiative.} Ne5 {[%emt 0:17:01]} 13. O-O {[%emt 0:06:14]} ({Better is} 13. Nxe5 $16 dxe5 14. a5) 13... Nc4 $14 {[%emt 0:03:09][%csl LRb2,LRe3]} 14. Bc1 {[%emt 0:01:55]} d5 {[%emt 0:12:19]} (14... Be7 $14) 15. exd5 $16 {[%emt 0:03:37]} Bd6 {[%emt 0:02:14]} 16. Kh1 {[%emt 0:04:47]} (16. dxe6 {simplifies} Bxe6 17. Kh1 O-O 18. f4) 16... O-O {[%emt 0:01:14]} ({Black should play} 16... exd5 17. Bg5 Be6) 17. b3 {[%emt 0:03:38]} Ne3 {[%emt 0:23:47]} 18. Bxe3 {[%emt 0:00:30]} Qxc3 {[%emt 0:00:03]} 19. dxe6 {[%emt 0:01:21]} Bxe6 {[%emt 0:00:11]} 20. Qd2 {[%emt 0:00:57]} Qc7 {[%emt 0:03:28]} 21. Bd4 {[%emt 0:06:01]} (21. Nf4 $18) 21... Rfc8 {[%emt 0:03:56]} 22. Rac1 {[%emt 0:01:27]} a5 {[%emt 0:03:44]} 23. Qg5 {[%emt 0:02:43]} h6 {[%emt 0:01:22]} 24. Qh4 {[%emt 0:00:43]} Nd5 {[%emt 0:00:20] [#]} 25. f4 $1 {[%emt 0:01:33] Strongly threatening f5.} Ne7 {[%emt 0:05:28]} 26. Bg4 {[%emt 0:01:21] And now f5 would win.} Qd7 {[%emt 0:05:37]} 27. Bxe6 {[%emt 0:01:14]} Qxe6 {[%emt 0:00:02]} 28. Be5 {[%emt 0:01:41]} Rb7 $2 {[%emt 0:05:09] [#]} (28... Bxe5 {was worth a try.} 29. fxe5 Rc3) 29. Bxd6 {[%emt 0:01:21]} Qxd6 {[%emt 0:00:14]} 30. f5 {[%emt 0:01:15]} (30. Ne5 $18) 30... Rbc7 {[%emt 0:00:26]} 31. Qf2 {[%emt 0:03:20]} Qf6 {[%emt 0:01:16]} 32. h3 {[%emt 0:00:28]} (32. c4 $18) 32... Rc3 {[%emt 0:00:47]} 33. Kg1 {[%emt 0:01:49]} h5 {[%emt 0:01:24]} (33... Nd5 $142) 34. Nb2 {[%emt 0:01:59]} R8c5 {[%emt 0:01:07]} (34... R3c5 $16 35. Nc4 Qxf5) 35. Nc4 $18 {[%emt 0:00:30]} Rxf5 {[%emt 0:00:34]} 36. Qd2 {[%emt 0:00:00]} Nd5 $2 {[%emt 0:07:54]} (36... g6 {is tougher.} 37. Rce1 Rxf1+ (37... Rxc4 $2 38. bxc4 Qb6+ 39. Qe3 $18) 38. Rxf1 Nf5) 37. Rxf5 {[%emt 0:00:00] White is clearly winning.} (37. Nxa5 $2 Qb6+ 38. Rf2 Rxf2 39. Qxf2 Qxa5 $19) 37... Qxf5 {[%emt 0:00:30]} 38. Rf1 {[%emt 0:00:53][%cal Bc1f1,Bf1e1,Be1e5][%mdl 32] Wards off Nf4} (38. Nxa5 Nf4 39. Kh1 (39. Qxc3 $2 {too greedy.} Ne2+ 40. Kh1 Nxc3 $19) 39... Rxh3+ 40. gxh3 Qxh3+ 41. Kg1 Qg3+ 42. Kf1 Qf3+ 43. Qf2 Qh1+ 44. Qg1 Qf3+ 45. Qf2 Qh1+ 46. Qg1 Qf3+ 47. Qf2 $11) 38... Qe4 {[%emt 0:00:00]} 39. Re1 {[%emt 0:01:07]} (39. Nxa5 Rxc2 40. Re1 Qf5 41. Re8+ Kh7 $14) 39... Qf5 {[%emt 0:00:10]} 40. Re5 {[%emt 0:00:00]} ({Less strong is} 40. Nxa5 Rxc2 41. Re8+ Kh7 $16) 40... Qg6 {[%emt 0:00:01]} 41. Qxd5 {[%emt 0:00:00]} Rxc2 {[%emt 0:00:05]} 42. Qe4 {[%emt 0:00:35] Weighted Error Value: White=0.16 (very precise) /Black=0.43.  Mistake:       	White=4     	Black=6      Inaccurate:     	White=2     	Black=2      OK:         	White=15    	Black=10     Best:        	White=4     	Black=3      Strong:       	White=1     	---} 1-0